bitfinex/quotes_SOLUSD_20250724
["timestamp","ask_amount","ask_price","bid_price","bid_amount"]
[1753336880413,16.78468397,182.6,182.59,9.59292709]
[1753336880614,22.96113522,182.6,182.56,9.59292709]
[1753336880795,22.96113522,182.6,182.53,9.59292709]
[1753336880796,16.78468397,182.56,182.53,9.59292709]
[1753336880998,16.78468397,182.56,182.48,11.85140107]
[1753336880999,16.78468397,182.56,182.55,9.59292709]
[1753336881210,62.66468397,182.56,182.55,9.59292709]
[1753336881799,63.32468397,182.56,182.48,6.3714]
[1753336881999,17.44468397,182.56,182.55,9.59292709]
[1753336882202,62.60468397,182.56,182.55,9.59292709]
[1753336882596,68.08233515,182.56,182.55,9.59292709]
[1753336882894,62.60468397,182.56,182.55,9.59292709]
[1753336883092,4.6,182.61,182.55,9.59292709]
[1753336883396,4.6,182.61,182.6,9.59292709]
[1753336884003,4.6,182.61,182.53,5.47855147]
[1753336884004,4.6,182.61,182.53,6.13855147]
[1753336884320,16.78468397,182.61,182.6,9.59292709]
[1753336885395,0.66,182.61,182.54,0.54782513]
[1753336885594,53.03761106,182.61,182.56,9.59292709]
[1753336885820,16.78468397,182.59,182.56,9.59292709]
[1753336885994,16.78468397,182.57,182.56,9.59292709]
[1753336886194,4.6,182.6,182.56,10.25292709]
[1753336886503,6.13404295,182.69,182.59,9.59292709]
[1753336886704,45.67,182.66,182.65,9.59292709]
[1753336886915,46.33,182.66,182.65,9.59292709]
[1753336887119,16.78468397,182.65,182.58,5.47705115]
[1753336887305,16.78468397,182.65,182.57,6.13733956]
[1753336887624,16.78468397,182.65,182.63,9.59292709]
[1753336887809,17.44468397,182.65,182.63,9.59292709]
[1753336888009,0.66,182.65,182.63,9.59292709]
[1753336888203,0.66,182.65,182.62,9.59292709]
[1753336888204,17.44468397,182.65,182.62,9.59292709]
[1753336888402,16.78468397,182.65,182.64,9.59292709]
[1753336888612,0.03,182.66,182.65,5.47495209]
[1753336888814,0.03,182.66,182.65,25.32080627]
[1753336889721,0.03,182.7,182.65,39.5556817]
[1753336890035,0.03,182.7,182.69,9.59292709]
[1753336890530,0.03,182.7,182.69,10.25292709]
[1753336890698,0.03,182.7,182.69,15.72668044]
[1753336891318,0.03,182.7,182.64,0.66]
[1753336891526,0.03,182.7,182.69,9.59292709]
[1753336892703,16.78468397,182.69,182.64,9.59292709]
[1753336893024,46.06,182.68,182.66,9.59292709]
[1753336893208,46.06,182.68,182.6,5.47638698]
[1753336893209,62.18468397,182.68,182.67,9.59292709]
[1753336894200,16.78468397,182.68,182.62,0.66]
[1753336894402,16.78468397,182.68,182.67,9.59292709]
[1753336894597,16.78468397,182.67,182.58,0.66]
[1753336894909,0.66,182.68,182.63,9.59292709]
[1753336895114,0.66,182.67,182.63,9.59292709]
[1753336895305,16.78468397,182.65,182.61,9.59292709]
[1753336895632,62.08468397,182.65,182.64,9.59292709]
[1753336896002,5.47525186,182.64,182.56,7.08582742]
[1753336896324,16.78468397,182.63,182.61,9.59292709]
[1753336896496,26.0,182.6,182.59,9.59292709]
[1753336896693,88.04468397,182.61,182.57,9.59292709]
[1753336896913,88.04468397,182.61,182.58,9.59292709]
[1753336897104,88.70468397,182.61,182.59,9.59292709]
[1753336897300,16.78468397,182.59,182.55,9.59292709]
[1753336897624,16.78468397,182.57,182.54,9.59292709]
[1753336897815,16.78468397,182.55,182.54,9.59292709]
[1753336898015,16.78468397,182.6,182.54,9.59292709]
[1753336898318,16.78468397,182.6,182.59,9.59292709]
[1753336898510,22.92118451,182.6,182.51,5.47915182]
[1753336898703,22.92118451,182.6,182.57,9.59292709]
[1753336898909,0.66,182.59,182.57,9.59292709]
[1753336899111,16.78468397,182.58,182.57,9.59292709]
[1753336899595,16.78468397,182.58,182.46,10.0]
[1753336899596,16.78468397,182.54,182.45,0.66]
[1753336899810,16.78468397,182.54,182.49,9.59292709]
[1753336899811,16.78468397,182.52,182.49,9.59292709]
[1753336900003,17.44468397,182.52,182.49,9.59292709]
[1753336900209,17.44468397,182.52,182.43,6.1079]
[1753336900531,16.78468397,182.52,182.51,9.59292709]
[1753336900830,16.78468397,182.52,182.5,9.59292709]
[1753336901037,16.78468397,182.52,182.51,9.59292709]
[1753336901220,21.38468397,182.52,182.51,9.59292709]
[1753336901398,4.6,182.52,182.51,25.325006]
[1753336901721,16.78468397,182.58,182.51,39.02288556]
[1753336902020,16.78468397,182.58,182.57,9.59292709]
[1753336902605,16.78468397,182.62,182.57,9.59292709]
[1753336902919,16.78468397,182.62,182.61,9.59292709]
[1753336903122,45.02,182.63,182.61,9.59292709]
[1753336903420,45.0,182.69,182.62,9.59292709]
[1753336903618,50.47380159,182.69,182.58,7.10890511]
[1753336903829,0.66,182.68,182.59,5.47675119]
[1753336904025,42.78468397,182.61,182.51,6.4154]
[1753336904231,16.78468397,182.59,182.56,9.59292709]
[1753336904395,16.78468397,182.59,182.57,9.59292709]
[1753336904727,0.66,182.71,182.58,10.8006322]
[1753336904932,45.64,182.71,182.69,9.59292709]
[1753336905431,44.98,182.71,182.69,9.59292709]
[1753336906045,16.81468397,182.7,182.62,0.66]
[1753336906336,16.81468397,182.7,182.69,9.59292709]
[1753336906505,16.81468397,182.7,182.63,6.02310682]
[1753336906706,16.81468397,182.7,182.69,9.59292709]
[1753336907334,17.47468397,182.7,182.69,9.59292709]
[1753336907633,0.03,182.7,182.69,15.06668044]
[1753336907837,0.03,182.7,182.69,15.72668044]
[1753336908541,0.03,182.7,182.69,9.59292709]
[1753336909518,0.03,182.7,182.69,15.72668044]
[1753336909828,0.03,182.7,182.69,16.27405577]
[1753336910216,0.03,182.7,182.69,15.06668044]
[1753336910411,0.03,182.7,182.69,5.47375335]
[1753336910611,0.03,182.7,182.69,15.06668044]
[1753336911132,0.03,182.7,182.69,15.72668044]
[1753336913046,0.03,182.7,182.69,15.06668044]
[1753336913706,1e-08,182.7,182.69,15.73668044]
[1753336913906,0.2,182.73,182.69,29.42106382]
[1753336914110,0.2,182.73,182.72,9.59292709]
[1753336914520,0.2,182.73,182.72,10.26292709]
[1753336914937,0.03,182.78,182.72,10.26292709]
[1753336915139,0.03,182.78,182.77,9.59292709]
[1753336915642,0.75,182.78,182.77,9.59292709]
[1753336916232,0.03,182.78,182.77,15.06428453]
[1753336916439,0.03,182.78,182.77,25.32721162]
[1753336916955,0.03,182.78,182.77,25.87434736]
[1753336917916,0.2,182.81,182.8,9.59292709]
[1753336918117,0.2,182.81,182.8,11.73857304]
[1753336918629,0.2,182.81,182.8,9.59292709]
[1753336918827,16.78468397,182.8,182.74,6.6353]
[1753336919028,16.78468397,182.8,182.71,5.47315417]
[1753336919029,16.78468397,182.78,182.71,5.47315417]
[1753336919338,16.78468397,182.78,182.77,9.59292709]
[1753336919541,16.78468397,182.8,182.77,9.59292709]
[1753336919741,17.50468397,182.8,182.78,9.59292709]
[1753336920043,17.50468397,182.8,182.79,9.59292709]
[1753336920359,16.98468397,182.81,182.79,9.59292709]
[1753336920520,0.2,182.81,182.8,9.59292709]
[1753336920858,0.92,182.81,182.8,9.59292709]
[1753336921317,0.2,182.81,182.8,9.59292709]
[1753336921723,0.2,182.81,182.8,15.0633866]
[1753336921949,0.2,182.81,182.8,15.7333866]
[1753336922120,0.2,182.81,182.8,16.28043255]
[1753336922419,0.2,182.89,182.8,29.95658134]
[1753336922618,0.2,182.89,182.88,9.59292709]
[1753336923434,16.78468397,182.88,182.85,9.59292709]
[1753336923640,17.50468397,182.88,182.86,9.59292709]
[1753336923842,16.78468397,182.86,182.84,9.59292709]
[1753336924034,16.78468397,182.84,182.82,9.59292709]
[1753336924336,16.78468397,182.82,182.81,9.59292709]
[1753336924545,0.72,182.86,182.81,9.59292709]
[1753336924721,16.78468397,182.87,182.85,9.59292709]
[1753336924919,0.2,182.89,182.86,9.59292709]
[1753336925119,0.2,182.89,182.88,9.59292709]
[1753336925324,17.70468397,182.89,182.88,9.59292709]
[1753336925740,16.98468397,182.89,182.88,9.59292709]
[1753336927255,23.17245148,182.89,182.88,9.59292709]
[1753336927622,17.70468397,182.89,182.88,9.59292709]
[1753336928625,16.98468397,182.89,182.88,9.59292709]
[1753336928832,16.78468397,182.88,182.82,11.87717043]
[1753336929050,16.78468397,182.86,182.8,0.06]
[1753336929250,16.78468397,182.86,182.85,9.59292709]
[1753336929432,16.78468397,182.88,182.85,9.59292709]
[1753336929627,16.78468397,182.88,182.87,9.59292709]
[1753336929934,22.97293118,182.88,182.85,9.59292709]
[1753336930253,22.97293118,182.88,182.8,0.06]
[1753336930254,26.37761106,182.86,182.8,0.06]
[1753336930444,16.78468397,182.84,182.8,9.65292709]
[1753336930747,16.78468397,182.84,182.83,9.59292709]
[1753336931248,17.50468397,182.84,182.8,9.65292709]
[1753336931453,61.60468397,182.87,182.83,9.59292709]
[1753336931650,26.37761106,182.85,182.8,0.06]
[1753336931856,16.78468397,182.82,182.8,0.06]
[1753336932151,16.78468397,182.82,182.8,9.65292709]
[1753336932152,16.78468397,182.81,182.8,9.65292709]
[1753336932641,17.50468397,182.81,182.8,0.06]
[1753336932826,16.78468397,182.81,182.8,9.65292709]
[1753336933025,17.50468397,182.81,182.8,9.65292709]
[1753336933229,16.78468397,182.81,182.8,9.65292709]
[1753336934630,16.78468397,182.81,182.8,15.1233866]
[1753336934930,16.78468397,182.81,182.8,9.65292709]
[1753336935131,22.97484424,182.81,182.8,0.06]
[1753336935955,16.78468397,182.8,182.74,9.59292709]
[1753336936162,32.56821199,182.8,182.75,9.59292709]
[1753336936453,32.56821199,182.8,182.72,0.06]
[1753336936454,16.78468397,182.78,182.77,9.59292709]
[1753336936641,0.72,182.79,182.76,9.59292709]
[1753336936839,0.72,182.78,182.76,9.59292709]
[1753336937044,0.72,182.77,182.75,9.59292709]
[1753336937231,61.58468397,182.76,182.72,0.06]
[1753336937428,17.50468397,182.76,182.73,9.59292709]
[1753336937644,16.78468397,182.74,182.73,9.59292709]
[1753336938556,16.78468397,182.77,182.73,9.59292709]
[1753336938730,16.78468397,182.77,182.76,9.59292709]
[1753336938930,26.0,182.83,182.76,9.59292709]
[1753336939130,16.78468397,182.8,182.72,6.75002896]
[1753336939334,16.78468397,182.83,182.79,9.59292709]
[1753336939536,44.8,182.85,182.82,9.59292709]
[1753336939739,44.8,182.85,182.84,9.59292709]
[1753336939934,0.72,182.84,182.83,9.59292709]
[1753336940135,0.72,182.84,182.76,0.67]
[1753336940136,16.78468397,182.84,182.78,5.47101536]
[1753336940343,16.78468397,182.83,182.82,9.59292709]
[1753336940547,16.78468397,182.83,182.76,0.54716568]
[1753336940769,16.78468397,182.83,182.82,9.59292709]
[1753336940970,16.78468397,182.84,182.82,9.59292709]
[1753336941132,16.78468397,182.84,182.83,9.59292709]
[1753336943048,44.8,182.88,182.83,15.06248897]
[1753336943334,16.78468397,182.88,182.87,9.59292709]
[1753336943639,16.78468397,182.88,182.8,9.59292709]
[1753336943640,42.78468397,182.87,182.8,9.59292709]
[1753336943828,15.72108259,182.88,182.77,9.59292709]
[1753336943829,16.78468397,182.83,182.77,9.59292709]
[1753336944031,16.78468397,182.81,182.77,9.59292709]
[1753336944247,16.78468397,182.79,182.77,9.59292709]
[1753336944665,16.78468397,182.77,182.72,9.65292709]
[1753336944958,26.37761106,182.73,182.72,0.06]
[1753336945138,71.17761106,182.73,182.66,9.59292709]
[1753336945334,16.78468397,182.71,182.63,21.49700244]
[1753336945532,16.78468397,182.71,182.7,9.59292709]
[1753336945729,16.78468397,182.73,182.7,9.59292709]
[1753336945932,16.78468397,182.73,182.72,9.59292709]
[1753336946138,22.91746616,182.73,182.65,5.47467336]
[1753336946358,17.44468397,182.73,182.7,9.59292709]
[1753336946560,16.78468397,182.71,182.65,5.47467336]
[1753336946743,16.78468397,182.71,182.7,9.59292709]
[1753336947061,16.78468397,182.73,182.7,9.59292709]
[1753336947261,16.78468397,182.73,182.72,9.59292709]
[1753336947554,16.78468397,182.77,182.72,9.59292709]
[1753336947864,16.78468397,182.77,182.76,9.59292709]
[1753336948340,16.78468397,182.77,182.71,5.4731348]
[1753336948660,16.78468397,182.77,182.72,9.59292709]
[1753336948661,16.78468397,182.75,182.72,9.59292709]
[1753336948840,16.78468397,182.75,182.67,5.47435265]
[1753336948841,17.44468397,182.75,182.73,9.59292709]
[1753336949159,44.78,182.78,182.74,9.59292709]
[1753336949160,16.78468397,182.76,182.74,9.59292709]
[1753336949335,44.8,182.8,182.75,9.59292709]
[1753336949535,0.66,182.81,182.79,9.59292709]
[1753336949740,45.46,182.84,182.8,9.59292709]
[1753336949941,45.46,182.84,182.83,9.59292709]
[1753336950141,62.24468397,182.84,182.83,9.59292709]
[1753336950352,16.78468397,182.83,182.78,5.47085855]
[1753336950650,62.27468397,182.84,182.82,9.59292709]
[1753336950651,0.03,182.84,182.82,9.59292709]
[1753336950852,0.03,182.84,182.83,9.59292709]
[1753336951062,0.03,182.84,182.83,10.84988327]
[1753336951560,0.03,182.84,182.83,9.59292709]
[1753336952246,0.03,182.84,182.83,15.77248897]
[1753336953060,0.03,182.84,182.83,15.06248897]
[1753336953356,0.03,182.84,182.83,9.59292709]
[1753336953935,0.03,182.84,182.78,1.5143]
[1753336954140,16.78468397,182.83,182.78,1.5143]
[1753336954441,0.03,182.84,182.82,9.59292709]
[1753336954839,17.47468397,182.84,182.83,9.59292709]
[1753336955061,16.81468397,182.84,182.83,9.59292709]
[1753336955647,16.81468397,182.84,182.74,0.54722556]
[1753336955859,16.81468397,182.84,182.72,7.8784]
[1753336955860,16.78468397,182.79,182.72,7.8784]
[1753336956093,16.78468397,182.77,182.76,9.59292709]
[1753336956364,16.78468397,182.79,182.76,15.06451124]
[1753336956562,16.78468397,182.79,182.78,9.59292709]
[1753336956753,0.69,182.84,182.78,9.59292709]
[1753336956952,0.03,182.84,182.83,9.59292709]
[1753336957352,17.47468397,182.84,182.83,9.59292709]
[1753336957562,22.94394671,182.84,182.83,9.59292709]
[1753336957764,16.78468397,182.83,182.77,0.54713574]
[1753336958072,0.69,182.84,182.82,9.59292709]
[1753336958269,0.03,182.84,182.83,9.59292709]
[1753336959964,0.03,182.84,182.83,15.06248897]
[1753336960164,0.03,182.84,182.83,15.77248897]
[1753336960974,0.03,182.84,182.83,9.59292709]
[1753336962061,0.69,182.84,182.8,5.47018646]
[1753336962263,16.78468397,182.83,182.82,9.59292709]
[1753336962569,0.66,182.83,182.82,9.59292709]
[1753336962868,0.66,182.83,182.79,9.59292709]
[1753336963366,0.66,182.83,182.8,9.59292709]
[1753336963564,42.78468397,182.82,182.81,9.59292709]
[1753336963777,16.78468397,182.81,182.8,9.59292709]
[1753336964369,42.78468397,182.78,182.69,5.47375335]
[1753336964564,16.78468397,182.76,182.73,9.59292709]
[1753336964760,16.78468397,182.76,182.74,9.59292709]
[1753336964972,16.78468397,182.74,182.73,9.59292709]
[1753336965271,16.78468397,182.76,182.73,9.59292709]
[1753336965461,17.44468397,182.76,182.74,9.59292709]
[1753336965849,16.78468397,182.74,182.73,9.59292709]
[1753336966071,0.66,182.74,182.72,9.59292709]
[1753336966475,0.66,182.74,182.69,5.47367577]
[1753336966782,0.66,182.74,182.72,9.59292709]
[1753336967567,16.78468397,182.75,182.68,5.53401289]
[1753336967568,16.78468397,182.75,182.73,9.59292709]
[1753336967773,16.78468397,182.76,182.74,9.59292709]
[1753336968070,16.78468397,182.77,182.75,9.59292709]
[1753336968271,16.78468397,182.77,182.76,9.59292709]
[1753336968955,16.81468397,182.84,182.76,10.30292709]
[1753336969146,44.72,182.83,182.82,9.59292709]
[1753336969346,44.72,182.83,182.71,0.54731541]
[1753336969347,16.78468397,182.82,182.8,9.59292709]
[1753336969547,17.44468397,182.82,182.8,9.59292709]
[1753336969763,0.03,182.84,182.81,9.59292709]
[1753336969953,0.03,182.84,182.83,9.59292709]
[1753336970153,61.53468397,182.84,182.83,9.59292709]
[1753336970567,0.03,182.84,182.83,9.59292709]
[1753336970773,0.03,182.84,182.83,10.30292709]
[1753336971182,0.03,182.84,182.83,9.59292709]
[1753336971354,0.03,182.84,182.83,10.30292709]
[1753336971961,0.03,182.84,182.83,15.77248897]
[1753336972366,0.03,182.84,182.83,15.06248897]
[1753336972985,0.03,182.84,182.83,9.59292709]
[1753336973185,0.03,182.84,182.8,9.59292709]
[1753336973484,0.03,182.84,182.83,9.59292709]
[1753336975892,0.03,182.84,182.77,5.47135744]
[1753336976079,0.03,182.84,182.83,9.59292709]
[1753336976891,16.78468397,182.83,182.82,9.59292709]
[1753336977090,17.44468397,182.83,182.79,9.59292709]
[1753336977265,16.78468397,182.81,182.79,9.59292709]
[1753336977470,16.78468397,182.81,182.77,5.47135744]
[1753336977787,44.73,182.84,182.77,5.47135744]
[1753336977788,16.78468397,182.83,182.8,9.59292709]
[1753336977986,16.78468397,182.83,182.74,6.3408]
[1753336978174,0.03,182.84,182.82,9.59292709]
[1753336978372,0.03,182.84,182.83,10.13988327]
[1753336978774,0.03,182.84,182.83,9.59292709]
[1753336979487,0.03,182.84,182.83,10.30292709]
[1753336979693,0.03,182.84,182.83,9.59292709]
[1753336980285,0.03,182.84,182.83,15.06248897]
[1753336980492,44.69,182.84,182.81,0.54701602]
[1753336980791,42.78468397,182.79,182.77,9.59292709]
[1753336980996,0.66,182.78,182.76,9.59292709]
[1753336981173,61.44468397,182.77,182.76,9.59292709]
[1753336981500,16.78468397,182.8,182.76,9.59292709]
[1753336981674,0.66,182.81,182.79,9.59292709]
[1753336981876,16.78468397,182.83,182.8,9.59292709]
[1753336982076,61.44468397,182.83,182.76,1.25716568]
[1753336982266,61.44468397,182.83,182.82,9.59292709]
[1753336982467,67.57431073,182.83,182.77,0.54713574]
[1753336982667,16.78468397,182.79,182.75,9.59292709]
[1753336982888,16.78468397,182.77,182.74,9.59292709]
[1753336983190,61.44468397,182.77,182.76,9.59292709]
[1753336983396,0.66,182.82,182.76,9.59292709]
[1753336983579,16.81468397,182.84,182.81,9.59292709]
[1753336983891,44.67,182.84,182.83,9.59292709]
[1753336984063,61.45468397,182.84,182.83,9.59292709]
[1753336984269,16.81468397,182.84,182.83,9.59292709]
[1753336984574,0.03,182.84,182.83,15.77248897]
[1753336984767,0.03,182.88,182.83,29.44639369]
[1753336984977,0.03,182.88,182.87,9.59292709]
[1753336985398,0.03,182.88,182.87,10.30292709]
[1753336986188,0.03,182.88,182.87,15.77129259]
[1753336986566,0.03,182.91,182.87,25.36421968]
[1753336986798,2.85580641,183.04,182.9,19.18585418]
[1753336987094,16.78468397,183.02,182.96,9.59292709]
[1753336987298,44.84,183.03,182.96,9.59292709]
[1753336987584,16.78468397,182.99,182.95,9.59292709]
[1753336987790,16.78468397,182.99,182.96,9.59292709]
[1753336988166,16.78468397,182.96,182.91,9.59292709]
[1753336988363,16.78468397,182.96,182.87,5.4683655]
[1753336988364,16.78468397,182.94,182.92,9.59292709]
[1753336988597,16.78468397,182.94,182.93,9.59292709]
[1753336988887,16.78468397,182.96,182.93,9.59292709]
[1753336989079,16.78468397,182.96,182.94,9.59292709]
[1753336989388,16.78468397,182.94,182.92,9.59292709]
[1753336989592,16.78468397,182.94,182.86,1.6489]
[1753336989774,16.78468397,182.92,182.89,9.59292709]
[1753336989981,17.44468397,182.91,182.89,9.59292709]
[1753336990792,0.66,182.9,182.87,9.59292709]
[1753336991198,0.66,182.9,182.88,9.59292709]
[1753336991375,16.78468397,182.91,182.88,9.59292709]
[1753336991577,22.91196213,182.91,182.88,9.59292709]
[1753336991990,17.44468397,182.91,182.88,9.59292709]
[1753336992184,16.78468397,182.91,182.89,9.59292709]
[1753336992495,16.78468397,182.91,182.9,9.59292709]
[1753336992906,16.78468397,182.91,182.88,9.59292709]
[1753336993080,0.66,182.9,182.87,9.59292709]
[1753336993291,0.66,182.9,182.83,5.46934456]
[1753336993481,0.66,182.9,182.87,9.59292709]
[1753336994095,0.66,182.9,182.88,9.59292709]
[1753336994310,61.38468397,182.9,182.89,9.59292709]
[1753336995093,16.78468397,182.89,182.86,9.59292709]
[1753336995287,11.78468397,182.89,182.87,9.59292709]
[1753336995490,11.78468397,182.89,182.88,9.59292709]
[1753336995711,15.05976243,182.93,182.88,9.59292709]
[1753336996018,44.58,182.94,182.84,0.71]
[1753336996183,0.66,182.93,182.85,0.54689636]
[1753336996391,0.66,182.93,182.85,5.46882552]
[1753336996583,5.46687076,182.92,182.83,5.46956188]
[1753336996879,0.66,182.91,182.87,9.59292709]
[1753336997085,45.24,182.9,182.87,9.59292709]
[1753336997403,16.78468397,182.89,182.84,1.25692627]
[1753336997599,16.78468397,182.89,182.83,5.46956188]
[1753336997790,17.44468397,182.89,182.82,12.0517494]
[1753336998399,17.44468397,182.89,182.86,9.59292709]
[1753336998828,22.91254572,182.89,182.86,9.59292709]
[1753336998999,16.78468397,182.87,182.8,69.74419558]
[1753336999191,16.78468397,182.85,182.83,9.59292709]
[1753336999890,16.78468397,182.84,182.83,9.59292709]
[1753337000843,22.91400375,182.84,182.8,69.74419558]
[1753337001168,0.66,182.88,182.83,9.59292709]
[1753337001336,62.03468397,182.87,182.85,9.59292709]
[1753337001625,42.78468397,182.85,182.75,6.15195622]
[1753337001826,9.59292709,182.84,182.78,9.59292709]
[1753337002028,16.78468397,182.82,182.78,9.59292709]
[1753337002402,22.94460238,182.82,182.78,9.59292709]
[1753337002598,22.94460238,182.82,182.75,5.47174554]
[1753337002829,22.94460238,182.82,182.78,9.59292709]
[1753337003000,26.0,182.85,182.81,9.59292709]
[1753337003328,62.01468397,182.84,182.81,9.59292709]
[1753337003821,62.01468397,182.84,182.82,9.59292709]
[1753337004192,62.01468397,182.84,182.81,9.59292709]
[1753337004423,62.01468397,182.84,182.82,9.59292709]
[1753337004605,44.54,182.86,182.83,9.59292709]
[1753337004794,17.47468397,182.85,182.84,9.59292709]
[1753337005029,17.47468397,182.85,182.77,5.47135744]
[1753337005254,16.78468397,182.85,182.83,9.59292709]
[1753337005727,16.78468397,182.85,182.84,9.59292709]
[1753337008639,16.78468397,182.85,182.79,5.47075879]
[1753337008846,16.78468397,182.85,182.84,9.59292709]
[1753337009066,17.47468397,182.85,182.83,9.59292709]
[1753337009368,16.78468397,182.85,182.84,9.59292709]
[1753337009532,16.78468397,182.87,182.84,9.59292709]
[1753337009736,0.69,182.86,182.82,9.59292709]
[1753337009959,0.69,182.85,182.82,9.59292709]
[1753337010464,16.78468397,182.87,182.84,9.59292709]
[1753337011242,42.78468397,182.86,182.85,9.59292709]
[1753337011444,0.69,182.93,182.85,10.27292709]
[1753337011630,61.28468397,182.92,182.9,9.59292709]
[1753337011834,44.5,182.92,182.91,9.59292709]
[1753337012034,61.28468397,182.92,182.91,9.59292709]
[1753337012379,42.78468397,182.88,182.79,19.20765577]
[1753337012677,26.37761106,182.86,182.79,0.06]
[1753337012962,16.78468397,182.86,182.83,9.59292709]
[1753337013167,17.47468397,182.86,182.82,9.59292709]
[1753337013335,16.78468397,182.84,182.79,0.06]
[1753337013541,61.26468397,182.84,182.79,0.06]
[1753337013836,16.78468397,182.82,182.79,9.65292709]
[1753337014035,16.78468397,182.82,182.79,0.06]
[1753337014036,16.78468397,182.8,182.79,0.06]
[1753337014540,17.47468397,182.8,182.79,0.06]
[1753337014845,22.94514348,182.8,182.79,0.06]
[1753337015064,17.47468397,182.8,182.79,0.06]
[1753337015247,16.78468397,182.8,182.79,0.06]
[1753337015436,22.94514348,182.8,182.79,0.06]
[1753337015634,17.47468397,182.8,182.79,0.06]
[1753337016568,22.94514348,182.8,182.79,0.06]
[1753337016735,17.47468397,182.8,182.79,0.06]
[1753337016930,16.78468397,182.8,182.79,6.38483584]
[1753337017150,61.24468397,182.82,182.79,6.38483584]
[1753337017347,61.24468397,182.82,182.8,6.32483584]
[1753337017548,61.93468397,182.82,182.8,6.32483584]
[1753337017940,0.69,182.81,182.79,0.06]
[1753337018148,16.78468397,182.8,182.79,0.06]
[1753337018542,48.94514348,182.8,182.79,0.06]
[1753337018740,48.94514348,182.8,182.71,0.06]
[1753337018741,42.78468397,182.76,182.71,0.06]
[1753337018953,16.78468397,182.74,182.71,6.38483584]
[1753337019857,17.47468397,182.74,182.71,6.38483584]
[1753337020046,61.24468397,182.73,182.72,6.32483584]
[1753337020844,16.78468397,182.72,182.71,0.06]
[1753337021048,16.78468397,182.72,182.71,6.38483584]
[1753337021257,16.78468397,182.72,182.71,9.61006124]
[1753337022440,26.0,182.7,182.68,0.06]
[1753337022659,61.22468397,182.69,182.68,0.06]
[1753337023179,71.46474521,182.69,182.64,69.80419558]
[1753337023361,16.78468397,182.65,182.64,0.06]
[1753337023543,70.77474521,182.65,182.64,0.06]
[1753337023740,16.78468397,182.66,182.64,9.61006124]
[1753337023939,16.78468397,182.67,182.64,0.06]
[1753337024146,61.22468397,182.65,182.64,0.06]
[1753337024563,76.9396973,182.65,182.64,0.06]
[1753337024751,42.78468397,182.62,182.61,0.1]
[1753337025072,96.75474521,182.62,182.61,0.1]
[1753337025266,26.33474521,182.61,182.6,0.1]
[1753337025444,27.02474521,182.61,182.6,0.1]
[1753337025645,16.78468397,182.57,182.53,0.1]
[1753337025881,16.78468397,182.55,182.53,0.1]
[1753337026055,96.75474521,182.54,182.53,0.1]
[1753337026369,87.89468397,182.54,182.53,0.1]
[1753337026585,102.92299655,182.54,182.53,0.1]
[1753337026880,38.55432171,182.65,182.54,6.5776]
[1753337026881,16.78468397,182.64,182.54,6.5776]
[1753337027047,16.78468397,182.64,182.63,9.55006124]
[1753337027248,61.20468397,182.64,182.63,9.55006124]
[1753337028080,61.20468397,182.64,182.57,0.68]
[1753337028284,61.89468397,182.64,182.6,9.55006124]
[1753337028472,61.89468397,182.64,182.55,0.54779512]
[1753337028473,16.78468397,182.6,182.57,9.55006124]
[1753337028694,26.0,182.61,182.57,9.55006124]
[1753337028695,16.78468397,182.58,182.57,9.55006124]
[1753337029296,16.78468397,182.58,182.56,9.55006124]
[1753337029466,0.69,182.64,182.57,10.23006124]
[1753337029667,17.47468397,182.67,182.63,9.55006124]
[1753337029862,44.42,182.66,182.6,0.68]
[1753337030075,61.20468397,182.66,182.65,9.55006124]
[1753337030293,61.89468397,182.66,182.65,9.55006124]
[1753337030471,16.78468397,182.65,182.58,0.54770511]
[1753337030798,16.78468397,182.63,182.6,9.55006124]
[1753337030988,16.78468397,182.61,182.6,9.55006124]
[1753337031294,17.50468397,182.61,182.59,9.55006124]
[1753337031791,17.50468397,182.61,182.54,5.47825134]
[1753337031792,16.78468397,182.59,182.57,9.55006124]
[1753337031998,13.68462028,182.69,182.58,9.55006124]
[1753337032200,4.6,182.6,182.59,0.54767511]
[1753337032360,4.6,182.6,182.59,10.75773635]
[1753337032566,44.4,182.64,182.59,16.23448754]
[1753337032776,44.4,182.64,182.63,9.55006124]
[1753337033099,16.78468397,182.69,182.63,10.21006124]
[1753337033276,16.78468397,182.67,182.63,0.66]
[1753337033579,16.78468397,182.67,182.66,9.55006124]
[1753337033961,16.78468397,182.67,182.61,6.1373]